[Event "Kvibergspelen September 2019"]
[Site "Prioritet Serneke Arena, Krutvagen 2, Gothenburg, Sweden"]
[Date "2019.09.27"]
[Round "3.1"]
[White "Hillarp Persson, Tiger"]
[Black "Malmstig, Erik"]
[Result "1/2-1/2"]
[TimeControl "15 minutes + 5 seconds per move from move one (Round 1 - 4) / 90 minutes + 30 seconds per move from move one (Round 5 - 8)"]
[WhiteTitle "GM"]
[BlackTitle "FM"]
[WhiteFideId "1700812"]
[BlackFideId "1702866"]
[WhiteElo "2558"]
[BlackElo "2257"]

1. c4 {[%clk 00:15:05]} {[%emt 00:00:04]} e5 {[%clk 00:15:02]} {[%emt
00:00:08]} 2. Nc3 {[%clk 00:15:07]} {[%emt 00:00:04]} Nc6 {[%clk 00:15:00]}
{[%emt 00:00:08]} 3. e3 {[%clk 00:15:04]} {[%emt 00:00:07]} Nf6 {[%clk
00:14:55]} {[%emt 00:00:10]} 4. Nge2 {[%clk 00:14:54]} {[%emt 00:00:15]} d5
{[%clk 00:14:51]} {[%emt 00:00:08]} 5. cxd5 {[%clk 00:14:57]} {[%emt 00:00:03]}
Nxd5 {[%clk 00:14:55]} {[%emt 00:00:02]} 6. a3 {[%clk 00:14:58]} {[%emt
00:00:03]} Be6 {[%clk 00:14:53]} {[%emt 00:00:07]} 7. b4 {[%clk 00:14:39]}
{[%emt 00:00:25]} Nb6 {[%clk 00:14:39]} {[%emt 00:00:19]} 8. d3 {[%clk
00:13:58]} {[%emt 00:00:46]} a6 {[%clk 00:14:02]} {[%emt 00:00:42]} 9. Bb2
{[%clk 00:14:01]} {[%emt 00:00:02]} Be7 {[%clk 00:13:58]} {[%emt 00:00:09]} 10.
Rc1 {[%clk 00:13:34]} {[%emt 00:00:32]} f5 {[%clk 00:13:50]} {[%emt 00:00:13]}
11. Na4 {[%clk 00:13:14]} {[%emt 00:00:26]} Nxa4 {[%clk 00:12:50]} {[%emt
00:01:05]} 12. Qxa4 {[%clk 00:13:16]} {[%emt 00:00:02]} O-O {[%clk 00:12:48]}
{[%emt 00:00:06]} 13. d4 {[%clk 00:11:29]} {[%emt 00:01:52]} f4 {[%clk
00:12:02]} {[%emt 00:00:52]} 14. e4 {[%clk 00:10:33]} {[%emt 00:01:02]} Nxd4
{[%clk 00:10:49]} {[%emt 00:01:18]} 15. Nxd4 {[%clk 00:10:35]} {[%emt
00:00:02]} exd4 {[%clk 00:10:52]} {[%emt 00:00:02]} 16. Qc2 {[%clk 00:10:27]}
{[%emt 00:00:13]} f3 {[%clk 00:10:18]} {[%emt 00:00:39]} 17. Rg1 {[%clk
00:10:12]} {[%emt 00:00:20]} c5 {[%clk 00:10:08]} {[%emt 00:00:16]} 18. Bc4
{[%clk 00:10:01]} {[%emt 00:00:15]} Bxc4 {[%clk 00:09:27]} {[%emt 00:00:46]} 19.
Qxc4+ {[%clk 00:10:04]} {[%emt 00:00:02]} Kh8 {[%clk 00:09:29]} {[%emt
00:00:02]} 20. bxc5 {[%clk 00:10:04]} {[%emt 00:00:06]} fxg2 {[%clk 00:08:27]}
{[%emt 00:01:07]} 21. Qxd4 {[%clk 00:09:47]} {[%emt 00:00:22]} Qxd4 {[%clk
00:08:28]} {[%emt 00:00:04]} 22. Bxd4 {[%clk 00:09:51]} Rf4 {[%clk 00:07:47]}
{[%emt 00:00:46]} 23. Rxg2 {[%clk 00:09:52]} {[%emt 00:00:04]} Rxe4+ {[%clk
00:07:50]} {[%emt 00:00:04]} 24. Be3 {[%clk 00:09:56]} Rc8 {[%clk 00:07:16]}
{[%emt 00:00:38]} 25. Kd2 {[%clk 00:09:32]} {[%emt 00:00:29]} Rd8+ {[%clk
00:04:51]} {[%emt 00:02:31]} 26. Ke2 {[%clk 00:09:28]} {[%emt 00:00:09]} h6
{[%clk 00:04:21]} {[%emt 00:00:35]} 27. Rg6 {[%clk 00:08:11]} {[%emt 00:01:22]}
Bf6 {[%clk 00:04:19]} {[%emt 00:00:07]} 28. c6 {[%clk 00:07:48]} {[%emt
00:00:27]} bxc6 {[%clk 00:03:47]} {[%emt 00:00:37]} 29. Rxc6 {[%clk 00:07:51]}
{[%emt 00:00:02]} Ra4 {[%clk 00:03:14]} {[%emt 00:00:38]} 30. Bc1 {[%clk
00:07:33]} {[%emt 00:00:23]} Kh7 {[%clk 00:03:07]} {[%emt 00:00:12]} 31. Rg3
{[%clk 00:07:36]} {[%emt 00:00:02]} Be5 {[%clk 00:02:46]} {[%emt 00:00:27]} 32.
Rh3 {[%clk 00:06:49]} {[%emt 00:00:51]} a5 {[%clk 00:02:36]} {[%emt 00:00:16]}
33. Rh5 {[%clk 00:06:46]} {[%emt 00:00:07]} Re8 {[%clk 00:02:13]} {[%emt
00:00:28]} 34. Kf1 {[%clk 00:06:43]} {[%emt 00:00:08]} Re4 {[%clk 00:01:53]}
{[%emt 00:00:25]} 35. Bd2 {[%clk 00:05:41]} {[%emt 00:01:07]} a4 {[%clk
00:01:47]} {[%emt 00:00:11]} 36. Ra6 {[%clk 00:05:42]} {[%emt 00:00:04]} Rf8
{[%clk 00:01:34]} {[%emt 00:00:18]} 37. Rh3 {[%clk 00:04:53]} {[%emt 00:00:54]}
Rc4 {[%clk 00:01:16]} {[%emt 00:00:24]} 38. Re6 {[%clk 00:04:35]} {[%emt
00:00:22]} Bd4 {[%clk 00:01:13]} {[%emt 00:00:08]} 39. Be3 {[%clk 00:04:17]}
{[%emt 00:00:22]} Rc3 {[%clk 00:01:09]} {[%emt 00:00:10]} 40. Rhxh6+ {[%clk
00:04:05]} {[%emt 00:00:18]} gxh6 {[%clk 00:01:09]} {[%emt 00:00:05]} 41. Bxd4
{[%clk 00:04:08]} Rxa3 {[%clk 00:01:07]} {[%emt 00:00:07]} 42. h4 {[%clk
00:04:01]} {[%emt 00:00:12]} Raf3 {[%clk 00:01:02]} {[%emt 00:00:09]} 43. Ra6
{[%clk 00:03:56]} {[%emt 00:00:10]} a3 {[%clk 00:01:02]} {[%emt 00:00:06]} 44.
Bc5 {[%clk 00:03:53]} {[%emt 00:00:07]} R8f5 {[%clk 00:00:59]} {[%emt
00:00:08]} 45. Kg2 {[%clk 00:02:58]} {[%emt 00:01:00]} h5 {[%clk 00:01:02]}
{[%emt 00:00:03]} 46. Be3 {[%clk 00:02:50]} {[%emt 00:00:13]} R3f4 {[%clk
00:00:43]} {[%emt 00:00:24]} 47. Bxf4 {[%clk 00:02:48]} {[%emt 00:00:07]} Rxf4
{[%clk 00:00:48]} {[%emt 00:00:01]} 48. Rxa3 {[%clk 00:02:08]} {[%emt
00:00:45]} 1/2-1/2

[Event "Kvibergspelen September 2019"]
[Site "Prioritet Serneke Arena, Krutvagen 2, Gothenburg, Sweden"]
[Date "2019.09.27"]
[Round "3.2"]
[White "Sidorchuk, Dmitry"]
[Black "Blomqvist, Erik"]
[Result "1/2-1/2"]
[TimeControl "15 minutes + 5 seconds per move from move one (Round 1 - 4) / 90 minutes + 30 seconds per move from move one (Round 5 - 8)"]
[BlackTitle "GM"]
[WhiteFideId "14110903"]
[BlackFideId "1709437"]
[WhiteElo "2266"]
[BlackElo "2519"]

1. d4 {[%clk 00:14:08]} {[%emt 00:01:01]} Nf6 {[%clk 00:15:08]} {[%emt
00:00:02]} 2. c4 {[%clk 00:14:10]} {[%emt 00:00:03]} e6 {[%clk 00:15:12]}
{[%emt 00:00:02]} 3. Nf3 {[%clk 00:14:06]} {[%emt 00:00:09]} Bb4+ {[%clk
00:15:15]} {[%emt 00:00:02]} 4. Bd2 {[%clk 00:14:06]} {[%emt 00:00:05]} a5
{[%clk 00:15:15]} {[%emt 00:00:04]} 5. a3 {[%clk 00:13:49]} {[%emt 00:00:23]}
Be7 {[%clk 00:15:02]} {[%emt 00:00:18]} 6. Nc3 {[%clk 00:13:45]} {[%emt
00:00:09]} d5 {[%clk 00:15:04]} {[%emt 00:00:02]} 7. e3 {[%clk 00:13:45]}
{[%emt 00:00:06]} O-O {[%clk 00:14:58]} {[%emt 00:00:11]} 8. Rc1 {[%clk
00:13:30]} {[%emt 00:00:20]} b6 {[%clk 00:14:49]} {[%emt 00:00:15]} 9. Bd3
{[%clk 00:12:31]} {[%emt 00:01:03]} Ba6 {[%clk 00:14:38]} {[%emt 00:00:16]} 10.
Qe2 {[%clk 00:12:30]} {[%emt 00:00:05]} c5 {[%clk 00:14:04]} {[%emt 00:00:40]}
11. O-O {[%clk 00:12:05]} {[%emt 00:00:30]} Nbd7 {[%clk 00:10:28]} {[%emt
00:03:40]} 12. Rfd1 {[%clk 00:11:29]} {[%emt 00:00:41]} dxc4 {[%clk 00:07:00]}
{[%emt 00:03:34]} 13. Bxc4 {[%clk 00:11:31]} {[%emt 00:00:02]} Bxc4 {[%clk
00:07:03]} {[%emt 00:00:03]} 14. Qxc4 {[%clk 00:11:35]} {[%emt 00:00:01]} Qb8
{[%clk 00:06:55]} {[%emt 00:00:13]} 15. Qb5 {[%clk 00:09:53]} {[%emt 00:01:47]}
Rc8 {[%clk 00:05:35]} {[%emt 00:01:25]} 16. h3 {[%clk 00:09:38]} {[%emt
00:00:20]} h6 {[%clk 00:05:14]} {[%emt 00:00:26]} 17. Be1 {[%clk 00:09:09]}
{[%emt 00:00:34]} cxd4 {[%clk 00:03:31]} {[%emt 00:01:48]} 18. exd4 {[%clk
00:08:47]} {[%emt 00:00:27]} Ra7 {[%clk 00:03:29]} {[%emt 00:00:06]} 19. Bd2
{[%clk 00:07:39]} {[%emt 00:01:13]} Qa8 {[%clk 00:02:55]} {[%emt 00:00:40]} 20.
Ne5 {[%clk 00:05:24]} {[%emt 00:02:20]} Rac7 {[%clk 00:01:45]} {[%emt
00:01:14]} 21. Re1 {[%clk 00:04:55]} {[%emt 00:00:35]} Nxe5 {[%clk 00:00:54]}
{[%emt 00:00:56]} 22. Rxe5 {[%clk 00:04:00]} {[%emt 00:00:59]} Nd5 {[%clk
00:00:32]} {[%emt 00:00:28]} 23. Rce1 {[%clk 00:03:41]} {[%emt 00:00:24]} Nxc3
{[%clk 00:00:26]} {[%emt 00:00:10]} 24. Bxc3 {[%clk 00:03:01]} {[%emt
00:00:46]} Bxa3 {[%clk 00:00:30]} {[%emt 00:00:01]} 25. Qxb6 {[%clk 00:02:52]}
{[%emt 00:00:14]} Rb7 {[%clk 00:00:15]} {[%emt 00:00:20]} 26. Qxa5 {[%clk
00:02:45]} {[%emt 00:00:12]} Qxa5 {[%clk 00:00:17]} {[%emt 00:00:03]} 27. Rxa5
{[%clk 00:02:41]} {[%emt 00:00:08]} Bxb2 {[%clk 00:00:21]} {[%emt 00:00:02]} 28.
Bxb2 {[%clk 00:02:44]} {[%emt 00:00:02]} Rxb2 {[%clk 00:00:25]} 29. d5 {[%clk
00:02:40]} {[%emt 00:00:09]} exd5 {[%clk 00:00:27]} {[%emt 00:00:03]} 1/2-1/2

[Event "Kvibergspelen September 2019"]
[Site "Prioritet Serneke Arena, Krutvagen 2, Gothenburg, Sweden"]
[Date "2019.09.27"]
[Round "3.3"]
[White "Schandorff, Lars"]
[Black "Petersson, Baldur Teodor"]
[Result "1-0"]
[TimeControl "15 minutes + 5 seconds per move from move one (Round 1 - 4) / 90 minutes + 30 seconds per move from move one (Round 5 - 8)"]
[WhiteTitle "GM"]
[BlackTitle "CM"]
[WhiteFideId "1400070"]
[BlackFideId "2309157"]
[WhiteElo "2496"]
[BlackElo "2238"]

1. d4 {[%clk 00:15:07]} {[%emt 00:00:02]} Nf6 {[%clk 00:15:08]} {[%emt
00:00:02]} 2. Nf3 {[%clk 00:15:11]} g6 {[%clk 00:15:12]} {[%emt 00:00:03]} 3.
c4 {[%clk 00:15:15]} {[%emt 00:00:01]} Bg7 {[%clk 00:15:09]} {[%emt 00:00:07]}
4. Nc3 {[%clk 00:15:18]} {[%emt 00:00:01]} O-O {[%clk 00:15:10]} {[%emt
00:00:04]} 5. e4 {[%clk 00:15:22]} {[%emt 00:00:02]} d6 {[%clk 00:15:14]}
{[%emt 00:00:01]} 6. Be2 {[%clk 00:15:25]} {[%emt 00:00:01]} e5 {[%clk
00:15:16]} {[%emt 00:00:03]} 7. d5 {[%clk 00:15:29]} {[%emt 00:00:02]} Na6
{[%clk 00:15:02]} {[%emt 00:00:18]} 8. Bg5 {[%clk 00:15:24]} {[%emt 00:00:10]}
h6 {[%clk 00:15:00]} {[%emt 00:00:08]} 9. Bh4 {[%clk 00:15:28]} {[%emt
00:00:01]} Qe8 {[%clk 00:14:51]} {[%emt 00:00:13]} 10. Nd2 {[%clk 00:15:24]}
{[%emt 00:00:09]} h5 {[%clk 00:14:00]} {[%emt 00:00:56]} 11. f3 {[%clk
00:14:49]} {[%emt 00:00:40]} Nh7 {[%clk 00:13:42]} {[%emt 00:00:22]} 12. O-O
{[%clk 00:14:49]} {[%emt 00:00:05]} Bh6 {[%clk 00:13:18]} {[%emt 00:00:29]} 13.
Rb1 {[%clk 00:14:04]} {[%emt 00:00:50]} f5 {[%clk 00:10:57]} {[%emt 00:02:26]}
14. b4 {[%clk 00:13:53]} {[%emt 00:00:16]} b6 {[%clk 00:09:33]} {[%emt
00:01:29]} 15. a3 {[%clk 00:13:29]} {[%emt 00:00:30]} Be3+ {[%clk 00:09:33]}
{[%emt 00:00:04]} 16. Kh1 {[%clk 00:12:55]} {[%emt 00:00:40]} g5 {[%clk
00:09:24]} {[%emt 00:00:14]} 17. Be1 {[%clk 00:12:19]} {[%emt 00:00:40]} f4
{[%clk 00:08:55]} {[%emt 00:00:35]} 18. Qa4 {[%clk 00:12:03]} {[%emt 00:00:21]}
Qxa4 {[%clk 00:07:25]} {[%emt 00:01:35]} 19. Nxa4 {[%clk 00:12:07]} g4 {[%clk
00:07:28]} {[%emt 00:00:02]} 20. Nc3 {[%clk 00:10:23]} {[%emt 00:01:49]} Nb8
{[%clk 00:06:31]} {[%emt 00:01:02]} 21. Nb3 {[%clk 00:10:19]} {[%emt 00:00:09]}
Ng5 {[%clk 00:04:50]} {[%emt 00:01:46]} 22. Bh4 {[%clk 00:09:00]} {[%emt
00:01:23]} gxf3 {[%clk 00:04:49]} {[%emt 00:00:06]} 23. gxf3 {[%clk 00:09:00]}
{[%emt 00:00:05]} Nh3 {[%clk 00:04:28]} {[%emt 00:00:26]} 24. Nd1 {[%clk
00:06:36]} {[%emt 00:02:29]} Ba6 {[%clk 00:04:05]} {[%emt 00:00:28]} 25. Rb2
{[%clk 00:06:20]} {[%emt 00:00:21]} Nd7 {[%clk 00:02:24]} {[%emt 00:01:46]} 26.
Re1 {[%clk 00:05:45]} {[%emt 00:00:40]} Nf6 {[%clk 00:00:48]} {[%emt 00:01:41]}
27. Bf1 {[%clk 00:05:35]} {[%emt 00:00:15]} Bc8 {[%clk 00:00:52]} {[%emt
00:00:01]} 28. Nxe3 {[%clk 00:04:28]} {[%emt 00:01:12]} fxe3 {[%clk 00:00:55]}
{[%emt 00:00:02]} 29. Rxe3 {[%clk 00:04:20]} {[%emt 00:00:13]} Rf7 {[%clk
00:00:19]} {[%emt 00:00:41]} 30. Rc3 {[%clk 00:02:28]} {[%emt 00:01:58]} Bd7
{[%clk 00:00:12]} {[%emt 00:00:12]} 31. c5 {[%clk 00:02:26]} {[%emt 00:00:07]}
Kh7 {[%clk 00:00:09]} {[%emt 00:00:08]} 32. cxd6 {[%clk 00:01:40]} {[%emt
00:00:51]} cxd6 {[%clk 00:00:13]} {[%emt 00:00:01]} 33. Bxf6 {[%clk 00:01:34]}
{[%emt 00:00:11]} Rxf6 {[%clk 00:00:16]} {[%emt 00:00:02]} 34. Rc7 {[%clk
00:01:38]} {[%emt 00:00:01]} Rxf3 {[%clk 00:00:06]} {[%emt 00:00:15]} 35. Rxd7+
{[%clk 00:01:34]} {[%emt 00:00:09]} Kh8 {[%clk 00:00:10]} 36. Bxh3 {[%clk
00:01:09]} {[%emt 00:00:30]} Rxh3 {[%clk 00:00:14]} {[%emt 00:00:02]} 37. Nd2
{[%clk 00:01:00]} {[%emt 00:00:14]} Rc8 {[%clk 00:00:17]} {[%emt 00:00:02]} 38.
Rb3 {[%clk 00:00:50]} {[%emt 00:00:15]} Rh4 {[%clk 00:00:14]} {[%emt 00:00:08]}
39. Rf3 {[%clk 00:00:47]} {[%emt 00:00:08]} Rg4 {[%clk 00:00:11]} {[%emt
00:00:08]} 40. h3 {[%clk 00:00:46]} {[%emt 00:00:06]} Rg6 {[%clk 00:00:13]}
{[%emt 00:00:03]} 41. Nf1 {[%clk 00:00:46]} {[%emt 00:00:05]} Rcg8 {[%clk
00:00:16]} {[%emt 00:00:02]} 42. Rf2 {[%clk 00:00:44]} {[%emt 00:00:07]} Rg1+
{[%emt 00:00:07]} 43. Kh2 R1g6 {[%clk 00:00:17]} 44. Ne3 {[%clk 00:00:51]}
{[%emt 00:00:03]} Rg3 {[%clk 00:00:07]} {[%emt 00:00:15]} 45. Nf5 {[%clk
00:00:48]} {[%emt 00:00:07]} Rxa3 {[%clk 00:00:09]} {[%emt 00:00:03]} 46. Nxd6
{[%clk 00:00:48]} {[%emt 00:00:05]} Re3 {[%clk 00:00:08]} {[%emt 00:00:06]} 47.
Nf7+ {[%clk 00:00:45]} {[%emt 00:00:08]} Kg7 {[%clk 00:00:12]} 48. Nxe5+ {[%clk
00:00:48]} {[%emt 00:00:02]} Kh8 {[%clk 00:00:15]} {[%emt 00:00:02]} 49. Nf7+
{[%clk 00:00:50]} {[%emt 00:00:04]} Kg7 {[%clk 00:00:19]} 50. e5 {[%clk
00:00:49]} {[%emt 00:00:07]} Rc8 {[%clk 00:00:16]} {[%emt 00:00:07]} 51. Nd6+
{[%clk 00:00:52]} {[%emt 00:00:02]} 1-0

[Event "Kvibergspelen September 2019"]
[Site "Prioritet Serneke Arena, Krutvagen 2, Gothenburg, Sweden"]
[Date "2019.09.27"]
[Round "3.5"]
[White "Pham, Bich Ngoc"]
[Black "Hector, Jonny"]
[Result "0-1"]
[TimeControl "15 minutes + 5 seconds per move from move one (Round 1 - 4) / 90 minutes + 30 seconds per move from move one (Round 5 - 8)"]
[WhiteTitle "WIM"]
[BlackTitle "GM"]
[WhiteFideId "12401285"]
[BlackFideId "1700090"]
[WhiteElo "2244"]
[BlackElo "2477"]

1. g3 {[%clk 00:15:05]} {[%emt 00:00:04]} d5 {[%clk 00:15:04]} {[%emt
00:00:05]} 2. Bg2 {[%clk 00:15:05]} {[%emt 00:00:07]} e5 {[%clk 00:15:07]}
{[%emt 00:00:02]} 3. d3 {[%clk 00:15:08]} {[%emt 00:00:03]} Nc6 {[%clk
00:15:08]} {[%emt 00:00:03]} 4. f4 {[%clk 00:15:07]} {[%emt 00:00:07]} exf4
{[%clk 00:15:01]} {[%emt 00:00:12]} 5. Bxf4 {[%clk 00:15:06]} {[%emt 00:00:06]}
Bd6 {[%clk 00:14:59]} {[%emt 00:00:06]} 6. Qc1 {[%clk 00:13:24]} {[%emt
00:01:48]} Nf6 {[%clk 00:14:43]} {[%emt 00:00:20]} 7. Nc3 {[%clk 00:13:25]}
{[%emt 00:00:04]} O-O {[%clk 00:14:28]} {[%emt 00:00:20]} 8. Bg5 {[%clk
00:13:14]} {[%emt 00:00:16]} d4 {[%clk 00:14:09]} {[%emt 00:00:24]} 9. Ne4
{[%clk 00:13:03]} {[%emt 00:00:16]} Be7 {[%clk 00:14:11]} {[%emt 00:00:03]} 10.
Nf2 {[%clk 00:12:43]} {[%emt 00:00:26]} Ng4 {[%clk 00:13:57]} {[%emt 00:00:18]}
11. Bxe7 {[%clk 00:11:32]} {[%emt 00:01:17]} Nxe7 {[%clk 00:13:25]} {[%emt
00:00:37]} 12. Nxg4 {[%clk 00:11:27]} {[%emt 00:00:10]} Bxg4 {[%clk 00:13:27]}
{[%emt 00:00:02]} 13. Bxb7 {[%clk 00:11:05]} {[%emt 00:00:28]} Nf5 {[%clk
00:13:04]} {[%emt 00:00:27]} 14. Nf3 {[%clk 00:10:34]} {[%emt 00:00:37]} Rb8
{[%clk 00:13:01]} {[%emt 00:00:08]} 15. Be4 {[%clk 00:10:37]} {[%emt 00:00:02]}
Ne3 {[%clk 00:12:49]} {[%emt 00:00:16]} 16. Ne5 {[%clk 00:09:32]} {[%emt
00:01:10]} f5 {[%clk 00:11:58]} {[%emt 00:00:56]} 17. Bf3 {[%clk 00:08:59]}
{[%emt 00:00:38]} Qe8 {[%clk 00:11:02]} {[%emt 00:01:01]} 18. Nxg4 {[%clk
00:08:05]} {[%emt 00:01:00]} fxg4 {[%clk 00:10:58]} {[%emt 00:00:09]} 19. Be4
{[%clk 00:08:08]} {[%emt 00:00:02]} Qb5 {[%clk 00:10:06]} {[%emt 00:00:56]} 20.
Rb1 {[%clk 00:05:36]} {[%emt 00:02:38]} Qa5+ {[%clk 00:09:51]} {[%emt
00:00:19]} 21. Qd2 {[%clk 00:04:01]} {[%emt 00:01:41]} Nxc2+ {[%clk 00:09:52]}
{[%emt 00:00:04]} 22. Kd1 {[%clk 00:04:05]} {[%emt 00:00:01]} Ne3+ {[%clk
00:09:54]} {[%emt 00:00:03]} 23. Ke1 {[%clk 00:04:07]} {[%emt 00:00:03]} Qxa2
{[%clk 00:09:37]} {[%emt 00:00:22]} 24. Qc1 {[%clk 00:04:05]} {[%emt 00:00:08]}
Qa5+ {[%clk 00:08:44]} {[%emt 00:00:57]} 25. Qd2 {[%clk 00:04:08]} {[%emt
00:00:02]} Qa2 {[%clk 00:08:01]} {[%emt 00:00:48]} 26. Qc1 {[%clk 00:04:11]}
{[%emt 00:00:03]} Rb6 {[%clk 00:06:07]} {[%emt 00:01:58]} 27. Ra1 {[%clk
00:02:17]} {[%emt 00:02:00]} Qf7 {[%clk 00:05:59]} {[%emt 00:00:12]} 28. Rxa7
{[%clk 00:01:48]} {[%emt 00:00:35]} Qf2+ {[%clk 00:05:52]} {[%emt 00:00:11]} 29.
Kd2 {[%clk 00:01:52]} {[%emt 00:00:02]} Rfb8 {[%clk 00:05:40]} {[%emt
00:00:15]} 30. Ra8 {[%clk 00:01:20]} {[%emt 00:00:38]} Rxa8 {[%clk 00:05:43]}
{[%emt 00:00:02]} 31. Bxa8 {[%clk 00:01:24]} {[%emt 00:00:01]} Qf8 {[%clk
00:05:34]} {[%emt 00:00:13]} 32. Ke1 {[%clk 00:00:44]} {[%emt 00:00:47]} Qxa8
{[%clk 00:05:31]} {[%emt 00:00:07]} 33. Rg1 {[%clk 00:00:44]} {[%emt 00:00:05]}
Qa5+ {[%clk 00:05:27]} {[%emt 00:00:08]} 34. Qd2 {[%clk 00:00:47]} {[%emt
00:00:03]} Qa1+ {[%clk 00:05:21]} {[%emt 00:00:10]} 35. Kf2 {[%clk 00:00:47]}
{[%emt 00:00:05]} Rf6# {[%emt 00:00:02]} 0-1

[Event "Kvibergspelen September 2019"]
[Site "Prioritet Serneke Arena, Krutvagen 2, Gothenburg, Sweden"]
[Date "2019.09.27"]
[Round "3.6"]
[White "Seo, Jung Min"]
[Black "Rasti, Arvin"]
[Result "1-0"]
[TimeControl "15 minutes + 5 seconds per move from move one (Round 1 - 4) / 90 minutes + 30 seconds per move from move one (Round 5 - 8)"]
[WhiteTitle "FM"]
[WhiteFideId "1734687"]
[BlackFideId "1741160"]
[WhiteElo "2437"]
[BlackElo "2182"]

1. e4 {[%clk 00:15:09]} {[%emt 00:21:03]} c5 {[%clk 00:15:03]} {[%emt
00:00:08]} 2. Nf3 {[%clk 00:15:06]} {[%emt 00:00:08]} d6 {[%clk 00:15:00]}
{[%emt 00:00:09]} 3. d4 {[%clk 00:15:08]} {[%emt 00:00:03]} cxd4 {[%clk
00:15:02]} {[%emt 00:00:03]} 4. Nxd4 {[%clk 00:15:12]} Nf6 {[%clk 00:15:06]}
{[%emt 00:00:01]} 5. Nc3 {[%clk 00:15:16]} {[%emt 00:00:01]} g6 {[%clk
00:15:10]} 6. g3 {[%clk 00:14:45]} {[%emt 00:00:35]} Bg7 {[%clk 00:15:11]}
{[%emt 00:00:04]} 7. Bg2 {[%clk 00:14:49]} O-O {[%clk 00:15:04]} {[%emt
00:00:13]} 8. O-O {[%clk 00:14:48]} {[%emt 00:00:06]} Nc6 {[%clk 00:14:43]}
{[%emt 00:00:26]} 9. Nde2 {[%clk 00:13:51]} {[%emt 00:01:02]} Nd7 {[%clk
00:13:07]} {[%emt 00:01:42]} 10. Nd5 {[%clk 00:13:45]} {[%emt 00:00:11]} Nb6
{[%clk 00:12:43]} {[%emt 00:00:29]} 11. Ne3 {[%clk 00:13:16]} {[%emt 00:00:33]}
Bd7 {[%clk 00:12:24]} {[%emt 00:00:24]} 12. c3 {[%clk 00:13:16]} {[%emt
00:00:05]} Rc8 {[%clk 00:12:24]} {[%emt 00:00:05]} 13. f4 {[%clk 00:13:06]}
{[%emt 00:00:15]} Na5 {[%clk 00:11:50]} {[%emt 00:00:40]} 14. Kh1 {[%clk
00:12:29]} {[%emt 00:00:41]} Nac4 {[%clk 00:11:47]} {[%emt 00:00:09]} 15. Nxc4
{[%clk 00:10:32]} {[%emt 00:02:01]} Nxc4 {[%clk 00:11:51]} {[%emt 00:00:01]} 16.
b3 {[%clk 00:10:35]} {[%emt 00:00:02]} Nb6 {[%clk 00:11:39]} {[%emt 00:00:17]}
17. Bd2 {[%clk 00:10:34]} {[%emt 00:00:06]} Bg4 {[%clk 00:11:31]} {[%emt
00:00:13]} 18. Rc1 {[%clk 00:10:29]} {[%emt 00:00:10]} Qd7 {[%clk 00:10:29]}
{[%emt 00:01:07]} 19. c4 {[%clk 00:10:30]} {[%emt 00:00:03]} h5 {[%clk
00:10:16]} {[%emt 00:00:18]} 20. Be3 {[%clk 00:10:20]} {[%emt 00:00:15]} h4
{[%clk 00:10:03]} {[%emt 00:00:19]} 21. gxh4 {[%clk 00:10:17]} {[%emt
00:00:08]} Bf6 {[%clk 00:10:04]} {[%emt 00:00:04]} 22. Bf2 {[%clk 00:10:04]}
{[%emt 00:00:18]} Kg7 {[%clk 00:09:53]} {[%emt 00:00:17]} 23. Qe1 {[%clk
00:09:43]} {[%emt 00:00:25]} Rh8 {[%clk 00:08:57]} {[%emt 00:01:02]} 24. Ng1
{[%clk 00:09:25]} {[%emt 00:00:23]} Rh7 {[%clk 00:08:15]} {[%emt 00:00:47]} 25.
e5 {[%clk 00:08:57]} {[%emt 00:00:33]} 1-0